fUSD/lending_fUSD_20260524
["ID","MTS","AMOUNT","RATE_DAILY","PERIOD"]
[422903937,1779599443000,-5139.20721212,0.000209,2]
[422903936,1779599443000,-713.11239565,0.000209,2]
[422903935,1779599443000,-1744.70786464,0.000209,2]
[422903942,1779599444000,-4252.84555163,0.000209,2]
[422903940,1779599444000,-300.32408804,0.000209,2]
[422903939,1779599444000,-707.48499536,0.000209,2]
[422903941,1779599444000,-503.0,0.000209,2]
[422903948,1779599446000,-4782.68193942,0.000209,2]
[422903952,1779599446000,-764.78,0.000209,2]
[422903949,1779599446000,-1340.92797663,0.000209,2]
[422903951,1779599446000,-33810.689672,0.000209,2]
[422903950,1779599446000,-458.38907396,0.000209,2]
[422903954,1779599447000,-599.34795837,0.000209,2]
[422903953,1779599447000,-654.54281627,0.000209,2]
[422903970,1779599841000,192.47,0.00027397,120]
[422903971,1779599948000,51017.0,0.00028082,120]
[422903991,1779600506000,500.0,0.00027731,120]
[422904013,1779600541000,1000.0,0.00028081,120]
[422904104,1779600631000,-19615.81,0.0001356,2]
[422904103,1779600631000,-300.0,0.00013559,2]
[422904110,1779600631000,-159.23,0.00014744,2]
[422904102,1779600631000,-300.0,0.00013559,2]
[422904105,1779600631000,-150.0,0.00013831,2]
[422904112,1779600631000,-300.0,0.00014861,2]
[422904111,1779600631000,-301.29220221,0.000148,2]
[422904107,1779600631000,-159.23,0.00014073,2]
[422904100,1779600631000,-1200.0,0.00013559,2]
[422904108,1779600631000,-169.48,0.00014104,2]
[422904106,1779600631000,-254.62,0.00013942,2]
[422904101,1779600631000,-1200.0,0.00013559,2]
[422904087,1779600631000,-267.75988441,0.00010045,2]
[422904097,1779600631000,-159.23,0.00012733,2]
[422904095,1779600631000,-159.23,0.00011393,2]
[422904098,1779600631000,-159.23,0.00013403,2]
[422904096,1779600631000,-159.23,0.00012063,2]
[422904093,1779600631000,-250.0,0.0001105,2]
[422904092,1779600631000,-160.0,0.0001076,2]
[422904094,1779600631000,-250.0,0.0001105,2]
[422904089,1779600631000,-159.23,0.00010052,2]
[422904091,1779600631000,-159.23,0.00010723,2]
[422904090,1779600631000,-255.0,0.00010152,2]
[422904088,1779600631000,-196.24003769,0.00010049,2]
[422904099,1779600631000,-1302.67,0.00013526,2]
[422904109,1779600631000,-208.8304494,0.00014136,2]
[422904124,1779600631000,-500.0,0.00014999,2]
[422904114,1779600631000,-384.67846389,0.000149,2]
[422904113,1779600631000,-150.0,0.00014899,2]
[422904146,1779600631000,-700.05,0.00015,2]
[422904143,1779600631000,-1227.43,0.00014999,2]
[422904141,1779600631000,-1227.43,0.00014999,2]
[422904142,1779600631000,-1227.43,0.00014999,2]
[422904137,1779600631000,-500.0,0.00014999,2]
[422904139,1779600631000,-528.83033071,0.00014999,2]
[422904140,1779600631000,-1227.43,0.00014999,2]
[422904138,1779600631000,-500.0,0.00014999,2]
[422904145,1779600631000,-1356.5451,0.00015,2]
[422904136,1779600631000,-500.0,0.00014999,2]
[422904134,1779600631000,-500.0,0.00014999,2]
[422904144,1779600631000,-117840.76550501,0.00015,2]
[422904130,1779600631000,-500.0,0.00014999,2]
[422904132,1779600631000,-493.35130919,0.00014999,2]
[422904115,1779600631000,-1680.0,0.00014915,2]
[422904117,1779600631000,-209.2004703,0.0001499,2]
[422904119,1779600631000,-271.71786391,0.00014999,2]
[422904118,1779600631000,-604.3793831,0.00014999,2]
[422904120,1779600631000,-1418.88,0.00014999,2]
[422904116,1779600631000,-210.44548877,0.00014917,2]
[422904121,1779600631000,-452.21468786,0.00014999,2]
[422904126,1779600631000,-232.65576228,0.00014999,2]
[422904123,1779600631000,-500.0,0.00014999,2]
[422904128,1779600631000,-438.52387113,0.00014999,2]
[422904159,1779600637000,-1213618.6904045,0.00015,2]
[422904162,1779600637000,-173.16,0.00015192,2]
[422904163,1779600637000,-1302.67,0.00015216,2]
[422904158,1779600637000,-985356.06483281,0.00015,2]
[422904160,1779600637000,-436.70727575,0.00015092,2]
[422904164,1779600637000,-2000.0,0.00015273,2]
[422904157,1779600637000,-9704.05738538,0.00015,2]
[422904152,1779600637000,-307.0,0.00015,2]
[422904156,1779600637000,-403.54484594,0.00015,2]
[422904155,1779600637000,-736.12857669,0.00015,2]
[422904153,1779600637000,-668.61257251,0.00015,2]
[422904154,1779600637000,-2017.42710222,0.00015,2]
[422904151,1779600637000,-28295.98941356,0.00015,2]
[422904170,1779600637000,-453.90085798,0.00016,2]
[422904161,1779600637000,-500.0,0.00015192,2]
[422904169,1779600637000,-434.6403,0.000159,2]
[422904166,1779600637000,-159.23,0.00015414,2]
[422904167,1779600637000,-503.56250299,0.00015466,2]
[422904168,1779600637000,-2271.40549563,0.00015807,2]
[422904186,1779600637000,-661.0,0.00016438,2]
[422904192,1779600637000,-1000.0,0.000165,2]
[422904184,1779600637000,-2351.0,0.00016406,2]
[422904188,1779600637000,-230.15,0.00016438,2]
[422904182,1779600637000,-2728.0,0.00016229,2]
[422904196,1779600637000,-159.23,0.00016754,2]
[422904194,1779600637000,-150.0,0.00016751,2]
[422904190,1779600637000,-13060.24096751,0.000165,2]
[422904181,1779600637000,-453.90085798,0.000162,2]
[422904179,1779600637000,-453.90085798,0.000161,2]
[422904173,1779600637000,-150.0,0.00016066,2]
[422904175,1779600637000,-159.23,0.00016084,2]
[422904171,1779600637000,-255.0,0.00016031,2]
[422904165,1779600637000,-500.0,0.00015273,2]
[422904198,1779600637000,-1302.67,0.00016907,2]
[422904177,1779600637000,-200.92116636,0.000161,7]
[422904288,1779600638000,-151.0,0.00019526,2]
[422904300,1779600638000,-213.96859442,0.00019526,2]
[422904286,1779600638000,-151.0,0.00019526,2]
[422904266,1779600638000,-364.23786313,0.0001901,7]
[422904272,1779600638000,-159.23,0.00019435,2]
[422904262,1779600638000,-384.67846389,0.00018865,2]
[422904264,1779600638000,-5234.33859492,0.00019,2]
[422904270,1779600638000,-224.831908,0.00019358,2]
[422904282,1779600638000,-151.0,0.00019526,2]
[422904276,1779600638000,-151.0,0.00019526,2]
[422904284,1779600638000,-151.0,0.00019526,2]
[422904302,1779600638000,-151.0,0.00019526,2]
[422904268,1779600638000,-170.78483,0.00019175,2]
[422904304,1779600638000,-500.0,0.00019526,2]
[422904310,1779600638000,-500.0,0.00019526,2]
[422904294,1779600638000,-151.0,0.00019526,2]
[422904292,1779600638000,-151.0,0.00019526,2]
[422904298,1779600638000,-151.0,0.00019526,2]
[422904308,1779600638000,-221.88543241,0.00019526,2]
[422904290,1779600638000,-198.97225456,0.00019526,2]
[422904296,1779600638000,-206.33422798,0.00019526,2]
[422904309,1779600638000,-151.0,0.00019526,2]
[422904312,1779600638000,-151.0,0.00019526,2]
[422904317,1779600638000,-500.0,0.00019526,2]
[422904319,1779600638000,-238.60871557,0.00019526,2]
[422904334,1779600638000,-151.0,0.00019526,2]
[422904323,1779600638000,-151.0,0.00019526,2]
[422904328,1779600638000,-500.0,0.00019526,2]
[422904280,1779600638000,-151.0,0.00019526,2]
[422904306,1779600638000,-151.0,0.00019526,2]
[422904278,1779600638000,-200.0,0.00019526,2]
[422904204,1779600638000,-159.23,0.00017424,2]
[422904260,1779600638000,-200.0,0.00018784,2]
[422904200,1779600638000,-500.0,0.00016952,2]
[422904202,1779600638000,-433.0,0.00017253,2]
[422904325,1779600638000,-247.43723804,0.00019526,2]
[422904206,1779600638000,-276.0,0.00017671,2]
[422904208,1779600638000,-403.0,0.000177,5]
[422904210,1779600638000,-4770.81,0.00017728,2]
[422904212,1779600638000,-9999.99,0.00017728,2]
[422904214,1779600638000,-150.99,0.00017728,2]
[422904219,1779600638000,-1737.79,0.00017728,5]
[422904217,1779600638000,-999.99,0.00017728,2]
[422904221,1779600638000,-9999.99,0.00017728,2]
[422904222,1779600638000,-9999.99,0.00017728,2]
[422904225,1779600638000,-299.99,0.00017728,4]
[422904226,1779600638000,-2500.0,0.00017883,2]
[422904274,1779600638000,-174.415055,0.00019471,2]
[422904229,1779600638000,-650.0,0.00017883,2]
[422904233,1779600638000,-1238.8775972,0.0001789,2]
[422904235,1779600638000,-305.79012465,0.00017899,2]
[422904248,1779600638000,-159.23,0.00018094,2]
[422904238,1779600638000,-1467.01,0.000179,2]
[422904240,1779600638000,-1207.11017478,0.00018,2]
[422904236,1779600638000,-112917.71695092,0.000179,2]
[422904242,1779600638000,-3292.0,0.00018047,2]
[422904255,1779600638000,-736.0,0.00018564,2]
[422904256,1779600638000,-1302.67,0.00018598,2]
[422904246,1779600638000,-500.0,0.00018073,2]
[422904250,1779600638000,-43486.07,0.00018356,2]
[422904253,1779600638000,-661.0,0.0001841,2]
[422904245,1779600638000,-2000.0,0.00018073,2]
[422904258,1779600638000,-159.23,0.00018765,2]
[422904230,1779600638000,-1350.0,0.00017883,7]
[422904330,1779600638000,-151.0,0.00019526,2]
[422904336,1779600638000,-1865.36488656,0.00019526,2]
[422904332,1779600638000,-256.59241585,0.00019526,2]
[422904408,1779600638000,-477.18463989,0.0001985,2]
[422904404,1779600638000,-231.487472,0.0001955,2]
[422904413,1779600638000,-151.0,0.00019865,2]
[422904411,1779600638000,-976.0,0.00019852,2]
[422904416,1779600638000,-1227.43,0.00019867,2]
[422904419,1779600638000,-300.0,0.00019867,2]
[422904414,1779600638000,-500.0,0.00019867,2]
[422904421,1779600638000,-500.0,0.00019868,2]
[422904427,1779600638000,-151.0,0.00019868,2]
[422904425,1779600638000,-151.0,0.00019868,2]
[422904429,1779600638000,-151.0,0.00019868,2]
[422904423,1779600638000,-504.29151086,0.00019868,2]
[422904435,1779600638000,-500.0,0.00019868,2]
[422904431,1779600638000,-151.0,0.00019868,2]
[422904402,1779600638000,-521.20369368,0.00019526,2]
[422904441,1779600638000,-526.896243,0.00019868,2]
[422904433,1779600638000,-500.0,0.00019868,2]
[422904443,1779600638000,-526.896243,0.00019868,2]
[422904447,1779600638000,-526.896243,0.00019868,2]
[422904445,1779600638000,-498.523832,0.00019868,2]
[422904449,1779600638000,-498.523832,0.00019868,2]
[422904451,1779600638000,-498.523832,0.00019868,2]
[422904463,1779600638000,-151.0,0.00019868,2]
[422904454,1779600638000,-151.0,0.00019868,2]
[422904465,1779600638000,-500.0,0.00019868,2]
[422904456,1779600638000,-153.755778,0.00019868,2]
[422904458,1779600638000,-151.0,0.00019868,2]
[422904460,1779600638000,-151.0,0.00019868,2]
[422904452,1779600638000,-498.523832,0.00019868,2]
[422904321,1779600638000,-151.0,0.00019526,2]
[422904438,1779600638000,-526.896243,0.00019868,2]
[422904406,1779600638000,-1467.01,0.000198,2]
[422904436,1779600638000,-500.0,0.00019868,2]
[422904398,1779600638000,-151.0,0.00019526,2]
[422904356,1779600638000,-500.0,0.00019526,2]
[422904359,1779600638000,-151.0,0.00019526,2]
[422904352,1779600638000,-286.14099624,0.00019526,2]
[422904348,1779600638000,-275.93152964,0.00019526,2]
[422904354,1779600638000,-151.0,0.00019526,2]
[422904350,1779600638000,-151.0,0.00019526,2]
[422904363,1779600638000,-151.0,0.00019526,2]
[422904361,1779600638000,-296.7282131,0.00019526,2]
[422904340,1779600638000,-266.08633524,0.00019526,2]
[422904344,1779600638000,-151.0,0.00019526,2]
[422904342,1779600638000,-151.0,0.00019526,2]
[422904338,1779600638000,-500.0,0.00019526,2]
[422904315,1779600638000,-151.0,0.00019526,2]
[422904400,1779600638000,-500.0,0.00019526,2]
[422904346,1779600638000,-500.0,0.00019526,2]
[422904365,1779600638000,-500.0,0.00019526,2]
[422904313,1779600638000,-230.09519341,0.00019526,2]
[422904396,1779600638000,-151.0,0.00019526,2]
[422904367,1779600638000,-307.70715698,0.00019526,2]
[422904394,1779600638000,-500.0,0.00019526,2]
[422904392,1779600638000,-151.0,0.00019526,2]
[422904390,1779600638000,-151.0,0.00019526,2]
[422904386,1779600638000,-151.0,0.00019526,2]
[422904384,1779600638000,-151.0,0.00019526,2]
[422904388,1779600638000,-500.0,0.00019526,2]
[422904382,1779600638000,-500.0,0.00019526,2]
[422904378,1779600638000,-151.0,0.00019526,2]
[422904376,1779600638000,-500.0,0.00019526,2]
[422904373,1779600638000,-319.18818048,0.00019526,2]
[422904369,1779600638000,-151.0,0.00019526,2]
[422904371,1779600638000,-151.0,0.00019526,2]
[422904380,1779600638000,-151.0,0.00019526,2]
[422904547,1779600639000,-456.578922,0.0001995,2]
[422904554,1779600639000,-251.64801,0.0001995,2]
[422904552,1779600639000,-251.64801,0.0001995,2]
[422904550,1779600639000,-251.64801,0.0001995,2]
[422904549,1779600639000,-251.64801,0.0001995,2]
[422904545,1779600639000,-456.578922,0.0001995,2]
[422904536,1779600639000,-151.0,0.0001995,2]
[422904543,1779600639000,-456.578922,0.0001995,2]
[422904541,1779600639000,-456.578922,0.0001995,2]
[422904534,1779600639000,-471837.61028999,0.0001995,15]
[422904539,1779600639000,-162.469386,0.0001995,2]
[422904527,1779600639000,-215.34753388,0.0001988,2]
[422904558,1779600639000,-151.0,0.0001995,2]
[422904531,1779600639000,-1227.43,0.00019949,2]
[422904560,1779600639000,-151.0,0.0001995,2]
[422904577,1779600639000,-1554.19411631,0.0002,2]
[422904564,1779600639000,-108813.20132368,0.0001995,2]
[422904562,1779600639000,-151.0,0.0001995,2]
[422904566,1779600639000,-3183.0002051,0.0001995,2]
[422904569,1779600639000,-150.0,0.00019978,2]
[422904571,1779600639000,-254.1230272,0.00019999,2]
[422904568,1779600639000,-1103.0,0.00019965,2]
[422904573,1779600639000,-210.0,0.0002,2]
[422904575,1779600639000,-702.0,0.0002,2]
[422904579,1779600639000,-178.83610398,0.0002,2]
[422904580,1779600639000,-155.0,0.0002,2]
[422904587,1779600639000,-3950.0,0.0002,2]
[422904583,1779600639000,-25930.3412314,0.0002,2]
[422904597,1779600639000,-200.0,0.0002,2]
[422904601,1779600639000,-52346.3177061,0.0002,2]
[422904556,1779600639000,-154.286921,0.0001995,2]
[422904532,1779600639000,-300.0,0.00019949,2]
[422904468,1779600639000,-500.0,0.00019868,2]
[422904525,1779600639000,-1227.43,0.00019868,2]
[422904471,1779600639000,-166.175143,0.00019868,2]
[422904467,1779600639000,-500.0,0.00019868,2]
[422904473,1779600639000,-166.175143,0.00019868,2]
[422904475,1779600639000,-166.175143,0.00019868,2]
[422904489,1779600639000,-177.708708,0.00019868,2]
[422904491,1779600639000,-500.0,0.00019868,2]
[422904493,1779600639000,-500.0,0.00019868,2]
[422904495,1779600639000,-500.0,0.00019868,2]
[422904497,1779600639000,-500.0,0.00019868,2]
[422904499,1779600639000,-500.0,0.00019868,2]
[422904501,1779600639000,-500.0,0.00019868,2]
[422904503,1779600639000,-151.0,0.00019868,2]
[422904476,1779600639000,-166.175143,0.00019868,2]
[422904594,1779600639000,-965.28310548,0.0002,2]
[422904479,1779600639000,-152.113508,0.00019868,2]
[422904482,1779600639000,-500.0,0.00019868,2]
[422904484,1779600639000,-500.0,0.00019868,2]
[422904519,1779600639000,-251.64801,0.00019868,2]
[422904515,1779600639000,-251.64801,0.00019868,2]
[422904521,1779600639000,-1227.43,0.00019868,2]
[422904514,1779600639000,-251.64801,0.00019868,2]
[422904517,1779600639000,-251.64801,0.00019868,2]
[422904523,1779600639000,-1227.43,0.00019868,2]
[422904529,1779600639000,-1227.43,0.00019949,2]
[422904513,1779600639000,-278.1,0.00019868,2]
[422904505,1779600639000,-151.0,0.00019868,2]
[422904511,1779600639000,-155.712414,0.00019868,2]
[422904510,1779600639000,-456.578922,0.00019868,2]
[422904507,1779600639000,-456.578922,0.00019868,2]
[422904509,1779600639000,-456.578922,0.00019868,2]
[422904486,1779600639000,-151.0,0.00019868,2]
[422904512,1779600639000,-456.578922,0.00019868,2]
[422904585,1779600639000,-353.0,0.0002,2]
[422904481,1779600639000,-500.0,0.00019868,2]
[422904591,1779600639000,-26784.60920099,0.0002,2]
[422904648,1779600639000,-500.0,0.00020131,2]
[422904646,1779600639000,-169.17,0.00020111,2]
[422904652,1779600639000,-500.0,0.00020131,2]
[422904654,1779600639000,-500.0,0.00020131,2]
[422904647,1779600639000,-500.0,0.00020131,2]
[422904645,1779600639000,-406.46,0.00020111,2]
[422904650,1779600639000,-501.54002188,0.00020131,2]
[422904643,1779600639000,-300.01498938,0.000201,2]
[422904651,1779600639000,-500.0,0.00020131,2]
[422904649,1779600639000,-509.01520863,0.00020131,2]
[422904655,1779600639000,-1227.43,0.00020131,2]
[422904657,1779600639000,-151.0,0.00020132,2]
[422904658,1779600639000,-487.0,0.00020132,2]
[422904665,1779600639000,-1280.88388877,0.00020247,2]
[422904659,1779600639000,-487.0,0.00020132,2]
[422904656,1779600639000,-1227.43,0.00020131,2]
[422904664,1779600639000,-578.20924308,0.00020247,2]
[422904599,1779600639000,-1059.11818865,0.0002,2]
[422904674,1779600639000,-240.01891434,0.000207,2]
[422904675,1779600639000,-22975.69202751,0.000207,2]
[422904672,1779600639000,-2005.9555727,0.00020622,2]
[422904671,1779600639000,-200.0,0.00020622,2]
[422904669,1779600639000,-158.14480742,0.00020302,2]
[422904653,1779600639000,-500.0,0.00020131,2]
[422904670,1779600639000,-661.0,0.00020381,2]
[422904666,1779600639000,-151.0,0.00020247,2]
[422904661,1779600639000,-150.76204261,0.00020227,2]
[422904667,1779600639000,-191.33326164,0.00020249,2]
[422904660,1779600639000,-759.63,0.00020132,2]
[422904662,1779600639000,-286.40081671,0.00020247,2]
[422904663,1779600639000,-646.65982734,0.00020247,2]
[422904668,1779600639000,-1302.67,0.00020288,2]
[422904644,1779600639000,-159.23,0.00020105,2]
[422904673,1779600639000,-624.70204451,0.000207,2]
[422904641,1779600639000,-200.0,0.00020074,2]
[422904624,1779600639000,-526.896243,0.0002,2]
[422904621,1779600639000,-526.896243,0.0002,2]
[422904613,1779600639000,-151.0,0.0002,2]
[422904622,1779600639000,-526.896243,0.0002,2]
[422904611,1779600639000,-151.0,0.0002,2]
[422904615,1779600639000,-222.0,0.0002,2]
[422904609,1779600639000,-371.0,0.0002,2]
[422904619,1779600639000,-151.0,0.0002,2]
[422904605,1779600639000,-163.15671991,0.0002,14]
[422904603,1779600639000,-13096.83015203,0.0002,2]
[422904593,1779600639000,-1312.09097925,0.0002,2]
[422904589,1779600639000,-3329.87230189,0.0002,20]
[422904582,1779600639000,-1491.67519646,0.0002,5]
[422904642,1779600639000,-1934.38338736,0.00020074,2]
[422904617,1779600639000,-151.0,0.0002,2]
[422904607,1779600639000,-152.0,0.0002,2]
[422904595,1779600639000,-507.06774107,0.0002,10]
[422904627,1779600639000,-498.523832,0.0002,2]
[422904625,1779600639000,-498.523832,0.0002,2]
[422904634,1779600639000,-166.175143,0.0002,2]
[422904638,1779600639000,-151.0,0.0002,2]
[422904629,1779600639000,-498.523832,0.0002,2]
[422904633,1779600639000,-151.0,0.0002,2]
[422904631,1779600639000,-151.0,0.0002,2]
[422904637,1779600639000,-166.175143,0.0002,2]
[422904632,1779600639000,-151.0,0.0002,2]
[422904626,1779600639000,-526.896243,0.0002,2]
[422904640,1779600639000,-2000.0,0.0002,7]
[422904630,1779600639000,-151.0,0.0002,2]
[422904635,1779600639000,-166.175143,0.0002,2]
[422904628,1779600639000,-498.523832,0.0002,2]
[422904636,1779600639000,-166.175143,0.0002,2]
[422904639,1779600639000,-2986.0,0.0002,2]
[422904706,1779600640000,-6489.0994919,0.00020876,2]
[422904719,1779600640000,-500.0,0.00020899,2]
[422904702,1779600640000,-1227.43,0.00020875,2]
[422904705,1779600640000,-232350.2169493,0.00020876,2]
[422904711,1779600640000,-251.64801,0.00020876,2]
[422904713,1779600640000,-251.64801,0.00020876,2]
[422904714,1779600640000,-251.64801,0.00020876,2]
[422904716,1779600640000,-151.0,0.00020876,2]
[422904712,1779600640000,-251.64801,0.00020876,2]
[422904722,1779600640000,-500.0,0.00020899,2]
[422904721,1779600640000,-500.0,0.00020899,2]
[422904717,1779600640000,-188.508091,0.00020876,2]
[422904715,1779600640000,-151.0,0.00020876,2]
[422904729,1779600640000,-27701.77,0.00020951,2]
[422904723,1779600640000,-500.0,0.00020899,2]
[422904718,1779600640000,-378.19470933,0.00020899,2]
[422904728,1779600640000,-152.0,0.00020949,7]
[422904727,1779600640000,-200.0,0.000209,2]
[422904726,1779600640000,-240.01891434,0.000209,2]
[422904725,1779600640000,-624.70204451,0.000209,2]
[422904724,1779600640000,-497.68995271,0.00020899,2]
[422904731,1779600640000,-152.0,0.00020978,7]
[422904741,1779600640000,-199.66013812,0.00021,2]
[422904742,1779600640000,-3414.42120023,0.00021,7]
[422904732,1779600640000,-150.0,0.00021,2]
[422904704,1779600640000,-10787.3334362,0.00020876,2]
[422904730,1779600640000,-9999.99,0.00020951,2]
[422904720,1779600640000,-500.88002424,0.00020899,2]
[422904697,1779600640000,-480.04211281,0.00020795,2]
[422904695,1779600640000,-166.175143,0.000207,2]
[422904700,1779600640000,-480.79081795,0.00020874,2]
[422904737,1779600640000,-838.0,0.00021,2]
[422904682,1779600640000,-526.896243,0.000207,2]
[422904681,1779600640000,-526.896243,0.000207,2]
[422904678,1779600640000,-151.0,0.000207,2]
[422904679,1779600640000,-164.863342,0.000207,2]
[422904680,1779600640000,-526.896243,0.000207,2]
[422904677,1779600640000,-257.801114,0.000207,2]
[422904676,1779600640000,-151.0,0.000207,2]
[422904684,1779600640000,-526.896243,0.000207,2]
[422904683,1779600640000,-498.523832,0.000207,2]
[422904685,1779600640000,-498.523832,0.000207,2]
[422904694,1779600640000,-166.175143,0.000207,2]
[422904686,1779600640000,-498.523832,0.000207,2]
[422904707,1779600640000,-456.578922,0.00020876,2]
[422904687,1779600640000,-498.523832,0.000207,2]
[422904689,1779600640000,-151.0,0.000207,2]
[422904693,1779600640000,-166.175143,0.000207,2]
[422904688,1779600640000,-151.0,0.000207,2]
[422904690,1779600640000,-151.0,0.000207,2]
[422904696,1779600640000,-151.0,0.000207,2]
[422904691,1779600640000,-151.0,0.000207,2]
[422904698,1779600640000,-1908.10444816,0.000208,2]
[422904709,1779600640000,-456.578922,0.00020876,2]
[422904708,1779600640000,-456.578922,0.00020876,2]
[422904703,1779600640000,-101429.3282538,0.00020876,2]
[422904701,1779600640000,-300.0,0.00020875,2]
[422904699,1779600640000,-209.2004703,0.00020866,2]
[422904710,1779600640000,-456.578922,0.00020876,2]
[422904692,1779600640000,-166.175143,0.000207,2]
[422904740,1779600640000,-1209.73914843,0.00021,2]
[422904734,1779600640000,-1908.10444816,0.00021,2]
[422904733,1779600640000,-150.0,0.00021,2]
[422904772,1779600640000,-1908.10444816,0.000212,2]
[422904774,1779600640000,-200.0,0.00021244,2]
[422904779,1779600640000,-153.0,0.00021258,2]
[422904775,1779600640000,-153.0,0.00021258,2]
[422904769,1779600640000,-508.40286137,0.00021199,2]
[422904773,1779600640000,-180.32779079,0.00021204,2]
[422904780,1779600640000,-153.0,0.00021258,2]
[422904776,1779600640000,-153.0,0.00021258,2]
[422904777,1779600640000,-153.0,0.00021258,2]
[422904778,1779600640000,-154.9833366,0.00021258,2]
[422904781,1779600640000,-235.0,0.00021258,2]
[422904784,1779600640000,-200.0,0.0002132,2]
[422904786,1779600640000,-512.0093558,0.00021387,2]
[422904771,1779600640000,-500.0,0.00021199,2]
[422904782,1779600640000,-624.70204451,0.000213,2]
[422904791,1779600640000,-1000.0,0.00021415,2]
[422904792,1779600640000,-1000.0,0.00021415,2]
[422904785,1779600640000,-151.0,0.00021385,2]
[422904787,1779600640000,-500.0,0.00021387,2]
[422904790,1779600640000,-1000.0,0.00021415,2]
[422904783,1779600640000,-240.01891434,0.000213,2]
[422904789,1779600640000,-1000.0,0.00021415,2]
[422904794,1779600640000,-1000.0,0.00021415,2]
[422904795,1779600640000,-1000.0,0.00021415,2]
[422904798,1779600640000,-290.58497,0.00021415,2]
[422904796,1779600640000,-1000.0,0.00021415,2]
[422904797,1779600640000,-1026.63897664,0.00021415,2]
[422904735,1779600640000,-210.0,0.00021,2]
[422904788,1779600640000,-1908.10444816,0.000214,2]
[422904770,1779600640000,-500.0,0.00021199,2]
[422904793,1779600640000,-1000.0,0.00021415,2]
[422904764,1779600640000,-151.0,0.00021111,2]
[422904768,1779600640000,-153.0,0.00021171,5]
[422904739,1779600640000,-353.0,0.00021,2]
[422904738,1779600640000,-155.0,0.00021,2]
[422904743,1779600640000,-150.0,0.00021,2]
[422904746,1779600640000,-500.0,0.00021078,2]
[422904745,1779600640000,-222.0,0.00021,2]
[422904747,1779600640000,-694.29907085,0.00021083,2]
[422904750,1779600640000,-196.93338324,0.00021099,2]
[422904744,1779600640000,-371.0,0.00021,2]
[422904754,1779600640000,-500.2,0.00021099,5]
[422904751,1779600640000,-500.0,0.00021099,2]
[422904753,1779600640000,-500.0,0.00021099,4]
[422904755,1779600640000,-204.49196744,0.000211,2]
[422904749,1779600640000,-1405.5641402,0.00021097,2]
[422904736,1779600640000,-702.0,0.00021,2]
[422904766,1779600640000,-200.0,0.0002117,2]
[422904748,1779600640000,-312.08235769,0.00021096,2]
[422904765,1779600640000,-151.0,0.00021122,2]
[422904763,1779600640000,-151.0,0.00021111,2]
[422904762,1779600640000,-151.0,0.00021111,2]
[422904760,1779600640000,-254.00184555,0.00021102,2]
[422904761,1779600640000,-200.0,0.00021109,2]
[422904758,1779600640000,-240.01891434,0.000211,2]
[422904767,1779600640000,-2080.17592889,0.0002117,2]
[422904756,1779600640000,-204.89923747,0.000211,2]
[422904757,1779600640000,-624.70204451,0.000211,2]
[422904752,1779600640000,-500.0,0.00021099,3]
[422904759,1779600640000,-1467.01,0.000211,2]
[422904837,1779600641000,-500.0,0.000219,2]